bitfinex/quotes_ETHUSD_20250611
["timestamp","ask_amount","ask_price","bid_price","bid_amount"]
[1749671915024,0.8257,2809.5,2808.6,1.011]
[1749671915225,0.8257,2809.5,2808.5,0.8384]
[1749671915422,0.8257,2809.5,2808.5,0.0374]
[1749671917533,0.8257,2809.5,2808.6,4.31373508]
[1749671917690,0.8257,2809.5,2808.7,3.56028311]
[1749671918210,0.8257,2809.5,2808.5,0.0374]
[1749671918412,10.7551,2809.0,2808.5,0.0374]
[1749671918792,0.7551,2809.0,2808.5,0.0374]
[1749671919107,10.8297,2809.6,2808.5,0.8017]
[1749671919328,11.16047494,2809.6,2808.5,0.8017]
[1749671919532,10.8297,2809.6,2808.6,0.43623748]
[1749671919909,11.16048866,2809.6,2808.5,0.8017]
[1749671920106,10.8297,2809.6,2808.5,0.7643]
[1749671920326,11.16048976,2809.6,2808.5,0.7643]
[1749671920508,10.8297,2809.6,2808.5,0.7643]
[1749671921113,11.16058255,2809.6,2808.5,0.7643]
[1749671921312,23.59959078,2809.6,2808.5,0.7643]
[1749671922323,0.1776,2809.4,2808.9,0.1776]
[1749671925054,0.8091,2809.3,2808.9,0.1776]
[1749671925410,13.57899078,2809.3,2808.9,0.1776]
[1749671925613,0.7844,2809.2,2808.9,0.1776]
[1749671927651,0.1776,2809.4,2808.9,0.1776]
[1749671927853,0.9485,2809.4,2808.9,0.1776]
[1749671928230,0.7709,2809.4,2808.6,4.37174499]
[1749671928435,0.7709,2809.4,2809.1,0.1776]
[1749671928836,0.7709,2809.4,2808.4,5.5805]
[1749671929031,0.1776,2809.3,2808.8,0.1776]
[1749671929845,0.794,2809.2,2808.6,0.1776]
[1749671930170,10.0,2809.3,2808.2,1.009]
[1749671930171,10.794,2808.7,2808.2,1.009]
[1749671930470,0.1776,2808.4,2808.1,0.63490669]
[1749671930643,0.7982,2808.3,2807.9,0.1776]
[1749671930833,0.1776,2808.4,2806.9,0.7915]
[1749671930834,10.7821,2808.1,2806.9,0.7915]
[1749671931032,10.7821,2808.1,2807.0,0.53632623]
[1749671931033,12.76989078,2807.9,2807.0,0.53632623]
[1749671931287,0.7821,2807.8,2806.9,1.08890375]
[1749671931884,0.7821,2807.8,2807.4,0.1776]
[1749671932642,0.7821,2808.1,2807.7,0.1776]
[1749671934548,0.7821,2808.1,2807.7,0.63069349]
[1749671934769,0.7821,2808.1,2807.7,0.1776]
[1749671935249,0.7821,2808.1,2807.7,0.215]
[1749671936259,0.7821,2808.1,2807.9,0.1776]
[1749671936584,10.7568,2807.9,2807.7,0.0374]
[1749671936770,0.7568,2807.8,2807.7,0.0374]
[1749671939477,14.5018,2807.8,2807.7,0.0374]
[1749671940151,10.7568,2807.8,2807.7,0.0374]
[1749671940353,0.7964,2808.8,2807.7,0.0374]
[1749671940694,11.14563344,2808.8,2807.7,0.0374]
[1749671941709,11.14563344,2808.8,2807.8,0.7944]
[1749671941901,3.746,2808.7,2807.9,1.01]
[1749671942065,10.0,2808.6,2807.9,1.01]
[1749671942264,0.7964,2808.8,2807.9,1.01]
[1749671942451,0.8303,2809.4,2807.9,1.01]
[1749671942655,3.746,2809.3,2808.4,0.7944]
[1749671942917,0.8303,2809.4,2808.4,13.56429078]
[1749671943096,0.8303,2809.4,2808.5,3.56061954]
[1749671943287,12.76989078,2810.1,2808.4,13.56429078]
[1749671943288,0.7705,2809.8,2808.7,13.31989078]
[1749671943458,0.7705,2810.4,2809.4,13.56689078]
[1749671943668,0.7705,2810.4,2809.4,0.797]
[1749671943891,0.7705,2810.4,2809.4,4.35643805]
[1749671944209,0.7705,2810.4,2809.5,3.55922793]
[1749671944210,1.12018916,2810.4,2809.5,3.55922793]
[1749671944413,1.12018916,2810.4,2809.6,1.01]
[1749671944758,1.12018916,2810.4,2809.4,0.797]
[1749671944759,10.0,2810.3,2809.4,0.797]
[1749671944957,10.0,2810.3,2809.5,1.01]
[1749671945182,13.54039078,2810.4,2809.5,1.01]
[1749671945382,0.7705,2810.4,2809.5,1.01]
[1749671945619,0.7705,2810.4,2809.6,0.53663628]
[1749671946171,0.7705,2810.4,2809.5,4.56934194]
[1749671946371,0.7705,2810.4,2809.5,1.01]
[1749671946571,0.1776,2810.6,2810.1,0.1776]
[1749671946772,0.3629495,2810.6,2810.1,0.1776]
[1749671948603,0.1776,2810.3,2809.9,1.009]
[1749671948761,0.7943,2810.2,2809.9,1.009]
[1749671948966,0.9796495,2810.6,2809.9,1.009]
[1749671949204,0.1776,2810.5,2810.0,0.1776]
[1749671949578,0.7943,2810.6,2810.2,0.1776]
[1749671950389,0.7943,2810.6,2810.2,1.1866]
[1749671951193,0.7943,2810.6,2810.2,0.1776]
[1749671951411,0.1776,2810.7,2810.2,0.1776]
[1749671951622,0.99684695,2811.0,2810.1,1.7981]
[1749671951911,0.1776,2810.9,2810.4,0.1776]
[1749671953993,0.52767961,2810.9,2810.4,0.1776]
[1749671954309,0.1776,2810.9,2810.4,0.1776]
[1749671954508,0.53542835,2811.3,2810.8,0.1776]
[1749671954707,0.1776,2811.3,2810.8,0.1776]
[1749671955108,10.0214545,2811.1,2810.8,0.1776]
[1749671955430,0.1776,2810.9,2810.4,0.1776]
[1749671955712,10.0,2810.7,2810.4,0.0374]
[1749671956220,20.8262545,2810.5,2810.4,0.0374]
[1749671956373,21.3762545,2810.5,2810.4,0.0374]
[1749671957328,11.3483,2810.4,2809.0,0.7758]
[1749671957507,10.0,2810.0,2809.1,0.29717084]
[1749671957821,10.7983,2810.3,2809.1,0.29717084]
[1749671957974,10.0,2810.1,2809.1,0.29717084]
[1749671958176,10.0,2810.1,2809.1,3.85697072]
[1749671958375,4.5413,2810.3,2809.1,3.85695577]
[1749671958716,4.5413,2810.3,2809.2,0.46327558]
[1749671958902,10.7783,2810.6,2809.4,0.8239]
[1749671959215,0.7783,2810.6,2809.4,0.8239]
[1749671959422,10.7783,2810.6,2809.4,4.38331464]
[1749671959619,10.7783,2810.6,2809.6,3.55920984]
[1749671959826,10.7783,2810.6,2809.7,1.36392098]
[1749671959992,10.7783,2810.6,2809.7,1.008]
[1749671960392,0.7783,2810.6,2809.7,1.008]
[1749671960594,10.7783,2810.6,2809.7,1.008]
[1749671961308,20.0214545,2810.4,2809.7,1.008]
[1749671961512,10.0,2810.4,2809.7,1.008]
[1749671961711,0.7783,2810.6,2809.7,1.008]
[1749671963283,0.7783,2810.6,2809.5,3.55934804]
[1749671963621,0.7783,2810.6,2809.4,0.8239]
[1749671963622,0.7783,2810.6,2809.6,1.008]
[1749671964141,10.0214545,2810.4,2809.4,0.8239]
[1749671964286,10.0,2810.2,2809.4,0.8239]
[1749671964494,10.0,2810.3,2809.4,0.8239]
[1749671964788,13.742,2810.3,2809.4,4.38329993]
[1749671964990,0.7783,2810.6,2809.5,0.43832999]
[1749671965191,3.742,2810.6,2809.7,0.7536]
[1749671965596,0.1776,2810.7,2810.2,0.1776]
[1749671966491,1.16483603,2811.3,2810.3,0.7759]
[1749671966744,0.1776,2811.0,2810.5,0.1776]
[1749671967046,0.1776,2811.0,2810.3,0.7759]
[1749671967047,1.16819528,2811.3,2810.3,0.7759]
[1749671967259,10.0214545,2811.2,2810.8,0.1776]
[1749671967430,10.0,2811.1,2810.3,0.7759]
[1749671967744,4.91019528,2811.3,2810.3,0.7759]
[1749671967745,10.0214545,2810.9,2810.5,0.1776]
[1749671968925,0.1776,2811.0,2810.5,0.1776]
[1749671969111,1.16819528,2811.3,2810.3,0.7759]
[1749671969305,1.34579528,2811.3,2810.8,0.1776]
[1749671969510,0.52819528,2811.3,2810.8,0.1776]
[1749671969849,10.0,2811.2,2810.3,0.7759]
[1749671969991,0.1776,2811.1,2810.6,0.1776]
[1749671970322,10.37204978,2811.3,2810.8,0.1776]
[1749671970323,0.52819528,2811.3,2810.8,0.1776]
[1749671971193,10.1990545,2811.0,2810.5,0.1776]
[1749671971427,0.1776,2811.0,2810.5,0.1776]
[1749671973032,0.1776,2811.0,2809.7,4.1916584]
[1749671973033,10.0,2810.5,2809.8,0.7981]
[1749671973414,14.5803545,2810.9,2809.8,0.7981]
[1749671973615,10.0,2810.8,2809.8,0.7981]
[1749671973820,13.742,2810.8,2809.8,0.7981]
[1749671974015,10.0,2810.8,2809.8,0.7981]
[1749671974221,13.742,2810.8,2809.9,0.4989784]
[1749671974625,13.742,2810.8,2809.8,0.899]
[1749671975154,10.8169,2810.9,2809.8,0.899]
[1749671975367,10.0214545,2810.4,2809.8,1.907]
[1749671976239,0.8209,2810.2,2809.8,0.1009]
[1749671976446,10.0214545,2810.0,2809.8,0.1009]
[1749671977017,10.8209,2810.2,2809.8,0.1009]
[1749671977806,10.0,2810.1,2809.8,0.1009]
[1749671978049,3.742,2810.0,2809.8,0.1009]
[1749671978744,10.0,2809.9,2809.8,0.1009]
[1749671981238,10.8209,2810.2,2809.8,0.1009]
[1749671981437,0.7965,2810.6,2809.8,1.1089]
[1749671981650,0.18534441,2810.7,2809.9,0.7555]
[1749671982927,0.1776,2811.2,2810.6,0.1776]
[1749671983191,0.1776,2811.2,2810.7,0.7844]
[1749671983469,10.1776,2811.2,2810.7,0.7844]
[1749671984350,20.0214545,2811.2,2810.4,0.7844]
[1749671984557,0.1776,2811.0,2810.5,0.1776]
[1749671984763,10.0,2810.9,2810.5,0.1776]
[1749671985078,20.0214545,2810.9,2810.1,0.7844]
[1749671985374,10.1990545,2810.6,2810.1,0.7844]
[1749671985548,0.1776,2810.6,2810.1,0.962]
[1749671985737,0.1776,2810.8,2810.3,0.1776]
[1749671985938,10.1776,2810.8,2810.3,0.1776]
[1749671986739,0.1776,2810.8,2810.3,0.1776]
[1749671986942,3.9196,2810.8,2810.3,0.1776]
[1749671987364,13.9196,2810.8,2810.3,0.1776]
[1749671987570,10.0,2810.7,2810.3,0.1776]
[1749671987895,3.9196,2810.8,2810.3,0.1776]
[1749671988053,10.0,2810.7,2810.1,0.7844]
[1749671988239,0.1776,2811.0,2810.5,0.1776]
[1749671988439,10.3594332,2811.3,2810.6,0.7624]
[1749671988641,0.5370332,2811.3,2810.9,0.1776]
[1749671989077,0.5370332,2811.3,2810.9,0.0776]
[1749671990360,0.3594332,2811.3,2810.6,0.7624]
[1749671990557,0.1776,2811.1,2810.6,0.94]
[1749671991178,10.20675337,2811.4,2810.6,0.7624]
[1749671991487,0.1776,2811.3,2810.8,0.1776]
[1749671992186,10.0214545,2811.0,2810.6,0.7624]
[1749671992383,0.1776,2810.9,2810.6,0.7624]
[1749671992681,13.742,2811.2,2810.8,0.1776]
[1749671993247,10.0,2811.2,2810.8,0.1776]
[1749671993447,0.1776,2811.1,2810.6,0.94]
[1749671993681,10.0,2811.2,2810.8,0.1776]
[1749671993979,0.1776,2811.3,2810.8,0.1776]
[1749671994346,0.1776,2811.8,2811.2,0.1776]
[1749671994557,0.1776,2811.8,2811.3,0.8303]
[1749671994558,3.9186,2811.8,2811.3,0.8303]
[1749671994901,4.07074429,2812.0,2811.6,0.1776]
[1749671995095,10.0,2811.9,2811.6,0.1776]
[1749671995401,10.0214545,2811.8,2811.3,0.8303]
[1749671995571,10.0214545,2811.8,2811.4,0.1776]
[1749671995572,10.0,2811.7,2811.4,0.1776]
[1749671995771,0.1852366,2811.8,2811.4,0.1776]
[1749671996201,0.1776,2811.9,2811.4,0.1776]
[1749671996409,10.0214545,2811.8,2811.4,0.1776]
[1749671996709,0.1776,2811.9,2811.4,0.1776]
[1749671997212,0.32974429,2812.0,2811.4,0.1776]
[1749671997409,0.32974429,2812.0,2811.5,0.756]
[1749671997908,0.32974429,2812.0,2811.5,0.7869]
[1749671998267,0.32974429,2812.0,2811.6,0.43437834]
[1749671998462,0.32974429,2812.0,2811.5,0.7869]
[1749671999309,0.32974429,2812.0,2811.6,0.8023]
[1749671999511,0.32974429,2812.0,2811.7,0.8023]
[1749672000012,10.0,2811.8,2810.9,0.8023]
[1749672000212,10.0214545,2811.6,2810.9,0.8023]
[1749672000502,10.0214545,2811.3,2810.9,0.8023]
[1749672000691,10.0214545,2811.3,2810.8,1.007]
[1749672001092,10.0,2811.4,2810.8,1.007]
[1749672003078,10.0,2811.4,2810.8,1.3039911]
[1749672003280,10.0,2811.5,2810.8,1.3039911]
[1749672003492,0.7769,2811.8,2810.8,1.3039911]
[1749672003667,10.0,2811.5,2810.8,1.3196911]
[1749672004207,10.7769,2811.8,2810.9,0.7549]
[1749672004498,0.32974429,2812.0,2811.0,0.7549]
[1749672004703,0.32974429,2812.0,2811.1,0.7549]
[1749672005302,0.32974429,2812.0,2811.1,3.85420943]
[1749672005502,0.32974429,2812.0,2811.2,0.7545]
[1749672005718,0.32974429,2812.0,2811.3,0.7545]
[1749672005901,0.32974429,2812.0,2811.1,0.29695941]
[1749672005902,0.32974429,2812.0,2811.5,0.8307]
[1749672006101,0.32974429,2812.0,2811.6,1.4457603]
[1749672006306,0.32974429,2812.0,2811.6,1.007]
[1749672006870,0.32974429,2812.0,2811.5,0.8307]
[1749672007070,10.0214545,2811.6,2811.2,1.0083]
[1749672007281,10.0214545,2811.6,2811.2,0.1776]
[1749672007500,0.1776,2811.5,2811.2,0.1776]
[1749672007904,10.0,2811.7,2811.6,0.0341]
[1749672009117,10.55,2811.7,2811.6,0.0341]
[1749672009322,10.8209,2811.7,2811.6,0.0341]
[1749672010096,0.55,2811.5,2810.2,6.142]
[1749672010296,20.8280545,2810.9,2810.1,0.8251]
[1749672010531,24.5740545,2810.9,2810.1,0.8251]
[1749672011123,10.8066,2810.9,2810.1,0.8251]
[1749672011306,10.0,2810.9,2810.1,0.8251]
[1749672012400,20.0214545,2810.9,2810.1,0.8251]
[1749672013451,10.0,2810.9,2810.1,0.8251]
[1749672013612,10.0,2810.9,2810.8,0.3126911]
[1749672014012,20.8393545,2810.9,2810.8,0.3126911]
[1749672014425,21.1702325,2810.9,2810.8,0.3126911]
[1749672014611,10.8179,2810.9,2810.8,0.3126911]
[1749672014813,10.0,2810.9,2810.8,0.3126911]
[1749672015214,10.0,2810.9,2810.8,0.0157]
[1749672015639,10.0,2810.9,2810.8,0.1166]
[1749672019970,10.765,2810.9,2810.8,0.1166]
[1749672020960,10.0,2810.9,2810.8,0.1166]
[1749672021515,0.1776,2811.0,2810.8,0.1166]
[1749672022071,10.0,2810.9,2810.8,0.1166]
[1749672022734,0.1776,2811.0,2810.8,0.1166]
[1749672023837,10.1990545,2811.0,2810.8,0.1166]
[1749672024470,10.0,2810.9,2810.8,0.1166]
[1749672025241,22.75089498,2810.9,2810.8,0.1166]
[1749672026591,26.49189498,2810.9,2810.8,0.1166]
[1749672027394,0.1776,2811.0,2810.8,0.1166]
[1749672027682,12.75089498,2811.4,2810.8,0.2942]
[1749672027879,16.49189498,2811.4,2810.8,0.1166]
[1749672028063,12.75089498,2811.4,2811.2,0.8295]
[1749672028586,12.75089498,2811.4,2811.1,0.1776]
[1749672028891,12.75089498,2811.4,2810.8,0.1166]
[1749672028892,3.741,2811.3,2810.8,0.1166]
[1749672029095,12.75089498,2811.0,2810.8,0.2942]
[1749672029246,0.1776,2810.8,2810.3,0.1776]
[1749672029445,12.75089498,2810.4,2810.2,0.1776]
[1749672029642,12.75089498,2810.3,2810.2,0.1776]
[1749672029955,12.75089498,2810.3,2809.7,0.812]
[1749672030141,3.745,2810.4,2809.8,0.2970968]
[1749672030142,16.49589498,2810.2,2809.8,0.2970968]
[1749672030340,16.49589498,2810.2,2809.9,0.1776]
[1749672031386,13.76862303,2810.2,2809.9,0.1776]
[1749672032376,13.76862303,2810.2,2809.4,0.629866]
[1749672032377,10.7704,2810.1,2809.4,0.629866]
[1749672032567,10.02362303,2809.5,2808.8,0.814]
[1749672032763,10.02362303,2809.2,2808.8,0.814]
[1749672032992,10.02362303,2808.9,2808.5,0.814]
[1749672033301,10.02362303,2808.9,2808.5,1.01426619]
[1749672033792,3.747,2809.0,2808.6,0.29722374]
[1749672034492,3.747,2809.0,2808.5,1.01426619]
[1749672034696,10.79402303,2809.5,2808.5,1.01426619]
[1749672034862,10.0,2809.7,2808.6,0.55850092]
[1749672035200,3.745,2809.6,2808.7,4.34743543]
[1749672035496,10.02362303,2809.5,2808.7,0.7871]
[1749672035871,0.7738,2809.9,2808.7,0.7871]
[1749672035872,10.02362303,2809.1,2808.7,0.7871]
[1749672036063,13.76962303,2809.1,2808.7,0.7871]
[1749672036259,10.02362303,2809.4,2808.7,0.7871]
[1749672036492,3.747,2809.4,2808.8,3.56023924]
[1749672036690,10.02362303,2810.0,2809.0,0.7607]
[1749672036876,13.748,2809.9,2809.0,0.7607]
[1749672037090,3.748,2809.8,2809.0,0.7607]
[1749672037397,10.02362303,2810.0,2809.0,4.3206482]
[1749672037602,3.748,2810.1,2809.1,0.93254514]
[1749672037966,3.748,2810.1,2809.2,0.7607]
[1749672038161,10.02362303,2810.3,2809.2,0.7607]
[1749672038362,3.747,2810.4,2809.4,0.7872]
[1749672038687,10.02362303,2810.3,2809.4,0.7872]
[1749672039158,10.02362303,2810.3,2809.4,1.7982]
[1749672039159,10.02362303,2810.0,2809.4,1.7982]
[1749672039496,10.02362303,2810.0,2809.4,0.7872]
[1749672039970,10.02362303,2810.3,2809.4,0.7872]
[1749672042204,3.747,2810.2,2809.4,0.7872]
[1749672042499,3.747,2810.2,2809.9,0.1776]
[1749672043503,10.0,2810.4,2809.9,0.1776]
[1749672043709,3.745,2810.2,2809.9,0.1776]
[1749672043912,3.744,2810.2,2810.0,0.7635]
[1749672044206,10.20122303,2810.5,2810.0,0.7635]
[1749672044390,13.94522303,2810.5,2810.0,0.7635]
[1749672044708,10.02362303,2810.5,2810.0,0.7635]
[1749672044866,13.76662303,2810.5,2810.1,0.1776]
[1749672046705,10.02362303,2810.2,2809.7,0.8024]
[1749672046912,10.02362303,2809.9,2809.7,0.1776]
[1749672047139,3.742,2809.8,2809.1,0.8024]
[1749672047439,10.02362303,2809.5,2809.1,0.98]
[1749672047609,10.02362303,2809.5,2808.6,1.01]
[1749672047610,10.02362303,2809.2,2808.6,1.8124]
[1749672047808,10.02362303,2808.9,2808.7,0.1776]
[1749672048424,10.20122303,2809.2,2808.7,0.1776]
[1749672048634,10.82542303,2809.8,2808.7,0.199]
[1749672048841,3.9226,2809.7,2809.1,0.1776]
[1749672050325,10.02362303,2809.5,2809.1,0.1776]
[1749672050531,10.38143429,2809.5,2809.1,0.1776]
[1749672050715,10.02362303,2809.5,2809.1,0.1776]
[1749672051016,3.743,2809.4,2809.1,0.1776]
[1749672055016,10.02362303,2809.2,2808.8,0.8024]
[1749672055216,10.02362303,2809.2,2808.9,0.1776]
[1749672055417,3.9206,2809.4,2808.9,0.1776]
[1749672055956,10.84592303,2809.5,2808.8,0.8024]
[1749672055957,3.743,2809.3,2808.8,0.8024]
[1749672056139,3.743,2809.3,2809.0,0.1776]
[1749672056542,3.743,2809.4,2809.0,0.1776]
[1749672057250,16.50549815,2809.4,2809.0,0.1776]
[1749672058713,12.76249815,2809.1,2809.0,0.1776]
[1749672058932,12.76249815,2809.1,2808.8,0.8024]
[1749672059133,12.76249815,2809.1,2808.9,0.1776]
[1749672061338,12.76249815,2809.1,2808.1,9.70312627]
[1749672061339,10.55,2808.9,2807.6,0.7635]
[1749672061556,12.76249815,2807.7,2807.6,0.7635]
[1749672061882,12.76249815,2807.7,2806.7,0.7635]
[1749672061883,16.50549815,2807.7,2806.7,0.7635]
[1749672062178,0.8135,2807.8,2806.7,1.06092495]
[1749672062344,3.743,2808.0,2806.7,3.86029024]
[1749672062688,0.785,2808.4,2807.1,0.797]
[1749672062830,13.57629815,2808.8,2807.8,0.797]
[1749672063030,12.76249815,2808.8,2807.9,3.56134681]
[1749672063234,11.0310268,2809.1,2808.0,0.43583468]
[1749672063432,0.18546436,2809.1,2808.0,1.01]
[1749672063688,0.18546436,2809.1,2808.0,5.557]
[1749672063979,0.18546436,2809.1,2808.2,4.35797655]
[1749672064181,0.18546436,2809.1,2808.3,1.43579766]
[1749672064332,0.18546436,2809.1,2808.4,0.797]
[1749672065244,0.18546436,2809.1,2808.4,4.357736]
[1749672065658,0.18546436,2809.1,2808.4,0.797]
[1749672071287,0.18546436,2809.1,2809.0,0.1776]
[1749672072298,1.01266436,2809.1,2808.8,0.1776]
[1749672072515,10.03176244,2808.9,2808.0,0.8049]
[1749672072727,10.03176244,2808.6,2808.4,0.1776]
[1749672073025,0.7595,2808.3,2807.9,0.1776]
[1749672073325,10.03176244,2808.1,2807.7,0.1776]
[1749672074609,10.03176244,2807.8,2807.0,7.91]
[1749672074828,10.03176244,2807.5,2807.4,0.1776]
[1749672075007,10.03176244,2807.8,2807.4,0.1776]
[1749672075612,0.8052,2807.7,2807.4,0.1776]
[1749672076442,10.03176244,2807.5,2807.4,0.1776]
[1749672076629,10.03176244,2807.5,2807.1,0.1776]
[1749672076829,10.03176244,2807.2,2807.1,0.1776]
[1749672077025,10.03176244,2807.5,2807.1,0.1776]
[1749672077427,10.03176244,2807.2,2806.1,0.7669]
[1749672077758,3.747,2807.2,2806.2,3.56353788]
[1749672077965,0.7516,2807.4,2806.2,3.56353788]
[1749672078136,13.77976244,2807.2,2806.1,0.7669]
[1749672078333,10.03176244,2806.9,2806.1,0.7669]
[1749672078518,10.03176244,2806.6,2806.1,0.7669]
[1749672078724,10.03176244,2806.6,2805.8,1.7876]
[1749672079656,0.7851,2806.7,2805.8,1.7876]
[1749672079657,10.03176244,2806.3,2805.8,1.7876]
[1749672079865,10.03176244,2806.0,2805.4,0.7796]
[1749672080073,10.03176244,2806.0,2805.5,0.29755216]
[1749672080937,0.7851,2806.7,2805.5,0.29755216]
[1749672081136,3.751,2806.6,2805.7,3.56416763]
[1749672081469,3.751,2806.6,2805.8,0.35641676]
[1749672081760,0.18544188,2806.5,2805.5,3.86188598]
[1749672081962,10.03176244,2806.3,2805.5,0.29755216]
[1749672082166,0.18544188,2806.5,2805.5,0.29755216]
[1749672082167,10.03176244,2806.0,2805.5,0.29755216]
[1749672082334,10.03176244,2805.7,2805.5,0.29755216]
[1749672082537,10.03176244,2805.7,2805.3,1.009]
[1749672083258,10.03176244,2805.7,2804.7,3.56533208]
[1749672083463,3.775,2805.6,2804.6,0.00119709]
[1749672083668,3.775,2805.6,2804.9,0.7787]
[1749672084070,3.775,2805.8,2804.9,0.7787]
[1749672084227,10.03176244,2805.1,2804.9,0.29761581]
[1749672084432,13.80676244,2805.4,2804.9,0.29761581]
[1749672085166,13.81176244,2805.4,2804.9,0.29761581]
[1749672086165,10.0,2805.3,2804.9,0.29761581]
[1749672086464,10.03176244,2805.1,2804.9,0.29761581]
[1749672086626,0.8117,2805.0,2804.9,0.29761581]
[1749672087325,13.80876244,2805.1,2804.6,0.00119709]
[1749672087326,10.03176244,2805.1,2804.6,0.00119709]
[1749672087539,10.03176244,2805.1,2804.7,0.1776]
[1749672087764,0.1776,2805.2,2804.7,0.1776]
[1749672087964,3.776,2805.2,2804.6,0.75839709]
[1749672088133,3.776,2805.2,2804.9,0.1776]
[1749672088328,3.776,2805.2,2804.6,0.75839709]
[1749672088587,10.03176244,2805.1,2804.7,0.1776]
[1749672089955,3.9546,2805.2,2804.7,0.1776]
[1749672090266,3.776,2805.3,2804.9,0.1776]
[1749672090970,3.775,2805.3,2804.9,0.1776]
[1749672091727,10.96646244,2805.4,2804.9,0.1776]
[1749672092050,14.74246244,2805.4,2804.9,0.1776]
[1749672093266,3.776,2805.3,2804.9,0.1776]
[1749672093584,10.0,2805.6,2804.7,0.7563]
[1749672093775,10.03176244,2806.0,2805.2,0.1776]
[1749672093975,10.03176244,2805.7,2804.7,0.7563]
[1749672094140,10.03176244,2805.3,2805.0,0.1776]
[1749672094783,0.1776,2805.5,2805.0,0.1776]
[1749672094957,8.989246,2806.8,2805.4,0.1776]
[1749672094958,3.775,2805.7,2805.4,0.1776]
[1749672095157,13.98436244,2805.9,2805.4,0.1776]
[1749672095359,12.79551325,2805.8,2805.4,0.1776]
[1749672096176,12.79551325,2805.8,2805.6,0.1776]
[1749672096379,12.79551325,2805.8,2804.9,0.7531]
[1749672096582,12.79551325,2805.4,2805.3,0.1776]
[1749672096880,12.79551325,2805.4,2804.9,0.7531]
[1749672097200,12.79551325,2805.1,2805.0,0.1776]
[1749672097374,12.79551325,2805.1,2804.6,0.75429709]
[1749672097579,12.79551325,2804.9,2804.8,0.1776]
[1749672097890,16.56851325,2804.9,2804.6,0.00119709]
[1749672099161,3.9516,2805.0,2804.6,0.00119709]
[1749672099361,3.773,2805.1,2804.6,0.00119709]
[1749672099563,3.773,2805.1,2804.8,0.1776]
[1749672101373,16.57151325,2805.2,2804.6,0.00119709]
[1749672101575,16.57151325,2805.2,2805.0,0.1776]
[1749672102082,16.75703844,2805.2,2805.0,0.1776]
[1749672102988,12.98103844,2805.2,2805.0,0.1776]
[1749672103199,3.77,2805.3,2805.0,0.1776]
[1749672103896,3.77,2805.5,2805.2,0.1776]
[1749672104494,0.18549638,2805.4,2805.2,0.1776]
[1749672104694,16.75000963,2805.4,2805.2,0.1776]
[1749672104855,12.98100963,2805.4,2804.6,0.83249709]
[1749672105053,0.18549638,2805.4,2804.6,4.39806365]
[1749672105378,0.18549638,2805.4,2805.2,0.1776]
[1749672105578,0.18549638,2805.4,2805.2,0.9617]
[1749672105955,3.771,2806.1,2805.2,0.7841]
[1749672106152,3.771,2806.1,2804.8,0.7841]
[1749672106153,12.79551325,2805.3,2804.8,0.7841]
[1749672106594,3.95646408,2805.4,2804.6,0.00119709]
[1749672106595,12.79551325,2805.1,2805.0,0.1776]
[1749672106794,0.7504,2805.0,2804.6,0.17879709]
[1749672107099,12.79551325,2804.7,2804.6,0.00119709]
[1749672107418,17.41026036,2804.7,2804.6,0.00119709]
[1749672107962,17.96026036,2804.7,2804.6,0.00119709]
[1749672108162,18.78956036,2804.7,2804.6,0.00119709]
[1749672108362,18.78956036,2804.7,2803.8,0.1776]
[1749672108563,0.1776,2804.1,2803.5,0.8016]
[1749672108770,16.57451325,2804.1,2803.8,0.1776]
[1749672109016,16.57451325,2804.1,2803.8,0.47533258]
[1749672109218,16.57451325,2804.1,2803.9,0.29772196]
[1749672109585,12.79551325,2804.1,2803.9,0.29772196]
[1749672109784,11.40514702,2804.7,2803.9,0.29772196]
[1749672109785,13.84295032,2804.7,2803.9,0.29772196]
[1749672110111,13.84295032,2804.7,2804.0,0.9849]
[1749672110112,12.79551325,2804.4,2804.0,0.9849]
[1749672110325,3.781,2804.6,2804.0,0.8073]
[1749672110506,3.781,2804.6,2804.3,0.1776]
[1749672110699,3.781,2804.6,2804.3,0.47527949]
[1749672111286,12.79551325,2804.4,2804.3,0.29767949]
[1749672111594,12.79551325,2804.4,2804.3,0.47527949]
[1749672111917,3.78,2804.6,2804.3,0.47527949]
[1749672112119,12.79551325,2804.7,2804.3,0.47527949]
[1749672112428,0.7735,2805.1,2804.0,0.8073]
[1749672112633,0.7735,2805.1,2804.6,0.1776]
[1749672112634,12.79551325,2804.9,2804.6,0.1776]
[1749672113813,12.79551325,2804.9,2804.5,0.1776]
[1749672114014,3.9556,2805.0,2804.5,0.1776]
[1749672114015,12.79551325,2804.6,2804.5,0.1776]
[1749672116318,12.79551325,2804.6,2804.0,1.8293]
[1749672116485,12.79551325,2804.3,2804.2,0.1776]
[1749672116993,3.774,2804.5,2804.2,0.1776]
[1749672118993,3.774,2804.5,2804.0,0.8073]
[1749672118994,1.05339018,2805.0,2804.0,4.37355734]
[1749672119326,4.61209232,2804.9,2804.4,0.1776]
[1749672119620,3.769,2804.9,2804.6,0.1776]
[1749672119822,16.56451325,2804.9,2804.6,0.1776]
[1749672119987,16.56451325,2804.9,2804.5,0.1776]
[1749672120388,3.769,2804.8,2804.0,4.37363332]
[1749672120618,12.79551325,2804.9,2804.0,4.37363332]
[1749672120619,3.769,2805.0,2804.7,0.1776]
[1749672120820,12.05825426,2805.4,2804.6,0.8086]
[1749672121117,1.02016353,2805.3,2804.8,0.1776]
[1749672121316,0.84256353,2805.2,2804.8,0.1776]
[1749672121526,0.1776,2805.3,2805.0,0.1776]
[1749672121527,3.769,2805.3,2805.0,0.1776]
[1749672121722,0.18546408,2805.4,2805.0,0.1776]
[1749672122285,0.18546408,2805.4,2804.6,4.37410406]
[1749672122489,0.18546408,2805.4,2805.2,0.1776]